Cogmind - Beta 16.1 @@@ ROGUE MODE // 2026.02.10 @ 16:52:18 Player: Lintence Result: Self-destructed Performance ------------- Evolutions (4) 2000 Regions Visited (9) 1800 Robots Destroyed (25) 125 Value Destroyed (365) 365 Prototype IDs (2) 40 Alien Tech Used (0) 0 Bonus (14) 14 TOTAL SCORE: 4344 Bonus ------- Follower Combat Kills 14 Cogmind --------- Core Integrity 575/850 Matter 290/300 Energy 100/100 System Corruption 0% Temperature Cool (0) Movement Flying (35) Location -6/Lower Caves Parts ------- > --- POWER (2) -------- (None) > --- PROPULSION (4) --- Improved VTOL Module > --- UTILITY (7) ------ Hacking Suite Makeshift Hacking Suite System Shield System Shield System Shield Authchip [Device] > --- WEAPON (2) ------- Chainsword > --- INVENTORY (5) ---- Improved VTOL Module Improved Sensor Array Improved Propulsion Shielding Peak State ------------ > --- POWER ------------ Light Nuclear Core Micro Nuclear Core > --- PROPULSION ------- Improved VTOL Module Improved VTOL Module Improved VTOL Module Improved VTOL Module > --- UTILITY ---------- Structural Scanner Hacking Suite Hacking Suite System Shield System Shield > --- WEAPON ----------- Chainsword Great Axe > --- INVENTORY -------- Flight Unit Flight Unit System Shield [Rating: 44] Favorites ----------- Power Light Nuclear Core Engine Light Ion Engine Power Core Light Nuclear Core Propulsion Improved VTOL Module Leg Aluminum Leg Flight Unit Improved VTOL Module Utility System Shield Device Structural Scanner Storage Small Storage Unit Processor Signal Interpreter Hackware System Shield Protection Propulsion Shielding Weapon Great Axe Energy Gun Heavy EM Pulse Gun Ballistic Gun Assault Rifle Slashing Weapon Great Axe Build | -11 -10 -9 -9 -8 -7 -7 -7 -6 -6 ------- Run | Yrd Mat Mat Min Mat Fac Low Low Fac Low Slots Evolved 8 | . . 2 . 2 2 . . 2 . Power 1 | . . . . . 1 . . . . Propulsion 2 | . . 2 . . . . . . . Utility 5 | . . . . 2 1 . . 2 . Weapon . | . . . . . . . . . . Parts Attached 55 | 6 4 13 2 10 15 2 . 3 . Power 8 | 1 1 3 . 1 2 . . . . Engine 2 | 1 . 1 . . . . . . . Core 6 | . 1 2 . 1 2 . . . . Reactor . | . . . . . . . . . . Propulsion 16 | 2 2 7 . . 3 1 . 1 . Treads . | . . . . . . . . . . Leg 6 | 2 2 2 . . . . . . . Wheel . | . . . . . . . . . . Hover . | . . . . . . . . . . Flight 10 | . . 5 . . 3 1 . 1 . Utility 21 | 1 1 . . 8 8 1 . 2 . Device 4 | . . . . 1 3 . . . . Storage 2 | 1 . . . 1 . . . . . Processor 6 | . 1 . . 3 2 . . . . Hackware 7 | . . . . 1 3 1 . 2 . Protection 2 | . . . . 2 . . . . . Artifact . | . . . . . . . . . . Weapon 10 | 2 . 3 2 1 2 . . . . Energy Gun 6 | 1 . 2 2 . 1 . . . . Energy Cannon . | . . . . . . . . . . Ballistic Gun 1 | 1 . . . . . . . . . Ballistic Cannon . | . . . . . . . . . . Launcher . | . . . . . . . . . . Special Weapon . | . . . . . . . . . . Impact Weapon . | . . . . . . . . . . Slashing Weapon 3 | . . 1 . 1 1 . . . . Piercing Weapon . | . . . . . . . . . . Special Melee Weapon . | . . . . . . . . . . Unidentified Prototypes 2 | . . 2 . . . . . . . Corrupted Parts 1 | . . . . 1 . . . . . System Corruption 1 | . . . . 1 . . . . . Parts Lost 15 | . . . . 2 3 6 . . 4 Power 3 | . . . . . 1 2 . . . Propulsion 6 | . . . . . . 3 . . 3 Utility 5 | . . . . 2 1 1 . . 1 Weapon 1 | . . . . . 1 . . . . Highest Loss Streak 4 | . . . . 2 2 3 . . 4 To Critical Strikes . | . . . . . . . . . . Average Backups 4 | 1 5 7 8 5 4 2 3 . 3 Power . | . 1 1 1 1 . . . . . Propulsion 1 | . . . . . 3 1 1 . 1 Utility 1 | . 1 3 4 1 . 1 2 . 2 Weapon 1 | . 1 3 3 2 1 . . . . Tool/Special . | . . . . . . . . . . Unused Backups 13 | . 1 4 2 4 . . . . 2 Power 3 | . . 2 . 1 . . . . . Propulsion 2 | . 1 . . . . . . . 1 Utility 3 | . . . 1 1 . . . . 1 Weapon 5 | . . 2 1 2 . . . . . Tool/Special . | . . . . . . . . . . Average Slot Usage (%) 88 | . 94 91 100 89 92 77 69 78 71 Engine 1 | . 10 . . . . . . . . Core 7 | . 3 11 11 9 10 6 . . . Leg 7 | . 28 24 . . . . . . . Flight 22 | . . 11 44 36 30 26 23 25 17 Device 3 | . . . . 3 5 7 7 6 6 Storage 4 | . 14 11 11 5 . . . . . Processor 8 | . 9 11 11 9 11 . . . . Hackware 12 | . . . . 5 15 25 30 39 40 Protection 1 | . . . . 7 2 . . . . Energy Gun 6 | . 14 15 19 5 2 . . . . Ballistic Gun 2 | . 14 1 . . . . . . . Slashing Weapon 6 | . . 5 2 6 10 9 7 6 6 Peak Build Rating 44 | 6 10 25 25 34 41 44 30 39 39 Average Rating 25 | 4 7 16 24 30 34 31 30 37 33 On Entrance 23 | . 6 10 25 24 30 41 30 30 39 Avg Prop Armor Cover (%) . | . . . . . . . . . . Naked Turns . | . . . . . . . . . . Heaviest Build 19 | 12 14 16 16 19 19 19 4 4 4 Greatest Support 43 | 20 20 43 19 19 19 20 15 19 19 Greatest Overweight (x) 2 | 2 . 2 . . . . . . . Average Overweight (x) . | . . . . . . . . . . Largest Inventory Capacity 8 | 8 8 8 8 8 8 5 5 5 5 Average Capacity 6 | 7 8 8 8 6 5 5 5 5 5 Most Carried 8 | 3 8 8 8 8 7 4 3 3 3 Average Carried 4 | 1 5 7 7 5 4 2 3 . 3 Final Capacity 8 | 8 8 8 8 8 5 5 5 5 5 Final Carried 8 | 3 8 8 8 8 4 3 3 3 3 Class Distribution -------------------- 38% | Hacker-Sprinter 34% | Sprinter 27% | Mutant Dominant Class ---------------- Mutant | -10/Materials Mutant | -9/Materials Mutant | -9/Mines Sprinter | -8/Materials Hacker-Sprinter | -7/Factory Hacker-Sprinter | -7/Lower Caves Hacker-Sprinter | -7/Lower Caves Hacker-Sprinter | -6/Factory Hacker-Sprinter | -6/Lower Caves Resources | -11 -10 -9 -9 -8 -7 -7 -7 -6 -6 ----------- Run | Yrd Mat Mat Min Mat Fac Low Low Fac Low Matter Collected 868 | 176 145 146 . 123 169 109 . . . Remotely . | . . . . . . . . . . Salvage Created 814 | 14 257 146 28 129 210 . . 30 . Parts 70 | 3 16 9 3 12 25 . . 2 . Haulers Intercepted 7 | . 2 1 . 1 3 . . . . Recyclers Shooed 1 | . . 1 . . . . . . . Parts Field Recycled . | . . . . . . . . . . Retrieved Matter . | . . . . . . . . . . Parts Self-Destructed 2 | . . . . . . 2 . . . Prevented . | . . . . . . . . . . Parts Restored . | . . . . . . . . . . Kills | -11 -10 -9 -9 -8 -7 -7 -7 -6 -6 ------- Run | Yrd Mat Mat Min Mat Fac Low Low Fac Low Combat Hostiles Destroyed 9 | . 3 2 . 4 . . . . . Melee 4 | . . . . 4 . . . . . Guns 5 | . 3 2 . . . . . . . Classes Destroyed 9 | 1 3 1 1 2 . . . 1 . Worker 1 | . . . . . . . . 1 . Builder 3 | . . . 1 . 2 . . . . Tunneler 1 | 1 . . . . . . . . . Hauler 7 | . 2 1 . 1 3 . . . . Operator 3 | . . . . 1 2 . . . . Watcher 1 | . 1 . . . . . . . . Swarmer 4 | . . . . 4 . . . . . Grunt 4 | . 3 1 . . . . . . . Duelist 1 | . . 1 . . . . . . . Best Kill Streak 4 | 1 3 2 1 4 2 . . 1 . Combat Bots Only 3 | . 1 2 . 3 . . . . . Max Kills in Single Turn 1 | 1 1 1 1 1 1 . . 1 . Gunslinging . | . . . . . . . . . . Exploded . | . . . . . . . . . . Melee 1 | . . . . 1 . . . . . Uniques/NPCs Destroyed . | . . . . . . . . . . Combat | -11 -10 -9 -9 -8 -7 -7 -7 -6 -6 -------- Run | Yrd Mat Mat Min Mat Fac Low Low Fac Low Hostile Shots Fired 212 | . 18 10 . 50 54 38 . 3 39 Missed 85 | . 5 3 . 21 19 20 . 3 14 Hits 127 | . 13 7 . 29 35 18 . . 25 Melee 5 | . . 2 . . 3 . . . . Projectile 122 | . 13 5 . 29 32 18 . . 25 Critical Strikes 5 | . . . . 2 1 2 . . . Damage Taken 1976 | . 167 127 . 577 452 274 . . 379 Core 698 | . 39 22 . 127 136 99 . . 275 Absorbed by Shields . | . . . . . . . . . . Redirected to Shielding 26 | . . . . 17 9 . . . . Core Remaining (%) 84 | 100 84 . 94 76 . . 66 . . Volleys Fired 29 | 4 19 5 1 . . . . . . Largest 2 | 2 2 2 2 . . . . . . Hottest 90 | 60 60 90 90 . . . . . . Shots Fired 58 | 8 38 10 2 . . . . . . Gun 58 | 8 38 10 2 . . . . . . Cannon . | . . . . . . . . . . Launcher . | . . . . . . . . . . Special . | . . . . . . . . . . Kinetic 23 | 4 19 . . . . . . . . Thermal . | . . . . . . . . . . Explosive . | . . . . . . . . . . Electromagnetic 35 | 4 19 10 2 . . . . . . Robot Hit Streak 15 | 2 15 9 2 . . . . . . Robot Miss Streak 3 | 3 1 1 . . . . . . . Penetration Max . | . . . . . . . . . . Secondary Targets 1 | . 1 . . . . . . . . Max Gunslinging Chain 1 | . 1 . . . . . . . . Shots Hit Robots 76 | 3 30 17 1 8 12 . . 2 3 Core Hits 29 | 1 10 5 1 5 6 . . 1 . Critical Kills . | . . . . . . . . . . Critical Parts Destroyed . | . . . . . . . . . . Critical Strikes . | . . . . . . . . . . Melee Attacks 81 | . . 12 . 17 43 . 1 2 6 Impact . | . . . . . . . . . . Slashing 81 | . . 12 . 17 43 . 1 2 6 Piercing . | . . . . . . . . . . Sneak Attacks 14 | . . 4 . 3 5 . . 2 . Combat Hostiles . | . . . . . . . . . . Follow-up Attacks . | . . . . . . . . . . Damage Inflicted 2486 | 42 427 472 15 483 802 . . 133 112 Guns 553 | 42 395 101 15 . . . . . . Cannons . | . . . . . . . . . . Explosions 32 | . 32 . . . . . . . . Melee 1901 | . . 371 . 483 802 . . 133 112 Ramming . | . . . . . . . . . . Kinetic 195 | 27 168 . . . . . . . . Thermal 32 | . 32 . . . . . . . . Explosive . | . . . . . . . . . . Electromagnetic 358 | 15 227 101 15 . . . . . . Impact . | . . . . . . . . . . Slashing 1901 | . . 371 . 483 802 . . 133 112 Piercing . | . . . . . . . . . . Highest Corruption 1 | . . . . 1 1 1 1 . . Average Corruption 1 | . . . . 1 1 1 1 . . Corruption Purged . | . . . . . . . . . . Corruption Blocked . | . . . . . . . . . . Effects 3 | . . . . 2 1 . . . . Message Errors 2 | . . . . 1 1 . . . . Matter Fused 1 | . . . . 1 . . . . . Overload Shots . | . . . . . . . . . . Overflow Damage 358 | . . 97 . 116 107 . . 38 . Projectiles . | . . . . . . . . . . Explosions . | . . . . . . . . . . Melee 358 | . . 97 . 116 107 . . 38 . Knockbacks . | . . . . . . . . . . Impact . | . . . . . . . . . . Kinetic . | . . . . . . . . . . Secondary . | . . . . . . . . . . Self-Inflicted Damage . | . . . . . . . . . . Shots . | . . . . . . . . . . Rammed . | . . . . . . . . . . Targets Rammed . | . . . . . . . . . . Kicked . | . . . . . . . . . . Crushed . | . . . . . . . . . . Highest Temperature 197 | . 54 197 47 7 36 33 . . . Average Temperature 32 | . 23 85 28 4 12 14 . . . Received Heat Transfer 426 | . 96 30 . 54 105 141 . . . Siege Activations . | . . . . . . . . . . Martial Activations . | . . . . . . . . . . Shielding Activations . | . . . . . . . . . . Robots Disrupted . | . . . . . . . . . . Combat Hostiles . | . . . . . . . . . . Robots Corrupted . | . . . . . . . . . . Combat Hostiles . | . . . . . . . . . . Parts Fried . | . . . . . . . . . . Impact Corruptions . | . . . . . . . . . . Robots Melted . | . . . . . . . . . . Combat Hostiles . | . . . . . . . . . . Parts Melted . | . . . . . . . . . . Heat Transferred 100 | . 100 . . . . . . . . Parts Sabotaged . | . . . . . . . . . . Parts Stolen . | . . . . . . . . . . Parts Stripped . | . . . . . . . . . . Power Chain Reactions 1 | . 1 . . . . . . . . Alert | -11 -10 -9 -9 -8 -7 -7 -7 -6 -6 ------- Run | Yrd Mat Mat Min Mat Fac Low Low Fac Low Maximum Alert Level 1 | . . . . 1 1 . . . . Low Security (%) 82 | 100 100 100 100 88 58 . . 100 . Level 1 17 | . . . . 11 41 . . . . Level 2 . | . . . . . . . . . . Level 3 . | . . . . . . . . . . Level 4 . | . . . . . . . . . . Level 5 . | . . . . . . . . . . High Security . | . . . . . . . . . . Max Security . | . . . . . . . . . . Peak Influence 236 | 5 35 72 32 236 226 . . 101 . Initial 102 | . . 5 27 8 102 . . 91 . Average 80 | . 14 21 26 58 154 . . 81 . Influence Increases 1152 | 5 95 132 5 346 374 180 . 15 . Destroy 0b10 Robot/C 220 | . 60 40 . 120 . . . . . Destroy 0b10 Robot/NC 80 | 5 15 5 5 10 35 . . 5 . Destroy Leader 56 | . 16 12 . 22 6 . . . . Allied During Kill 8 | . . . . 8 . . . . . Successful Hack 10 | . . . . . . . . 10 . Disable Machine 30 | . . . . . 30 . . . . Destroy Structure 28 | . 4 . . 6 18 . . . . Partial Spotted 75 | . . 30 . . 45 . . . . Lose Combat Pursuer 645 | . . 45 . 180 240 180 . . . Influence Decreases 1151 | 5 80 75 55 142 384 191 60 94 65 Entered New Map 393 | . . 10 45 14 124 81 40 54 25 Time Decay 568 | 5 80 65 10 68 230 50 20 40 . Lost Part 150 | . . . . 20 30 60 . . 40 Lost Ally 40 | . . . . 40 . . . . . Squads Dispatched 8 | . . . . 3 4 . . 1 . Investigation 2 | . . . . . 1 . . 1 . Extermination 2 | . . . . . 2 . . . . Reinforcement 4 | . . . . 3 1 . . . . Assault . | . . . . . . . . . . Garrison . | . . . . . . . . . . Intercept . | . . . . . . . . . . Searches Triggered . | . . . . . . . . . . Construction Impeded . | . . . . . . . . . . Haulers Reinforced . | . . . . . . . . . . Active Scanning Responses . | . . . . . . . . . . Cargo Convoy Interrupts . | . . . . . . . . . . Stealth | -11 -10 -9 -9 -8 -7 -7 -7 -6 -6 --------- Run | Yrd Mat Mat Min Mat Fac Low Low Fac Low Distress Signals 4 | . 1 1 . 2 . . . . . Communications Jammed . | . . . . . . . . . . Distress Signals . | . . . . . . . . . . Times Spotted 90 | . 4 17 . 18 25 18 . 4 4 Peak Tracking Total 15 | . 2 12 . 15 8 10 . 8 4 Tactical Retreats 15 | . . 2 . 4 7 2 . . . Traps | -11 -10 -9 -9 -8 -7 -7 -7 -6 -6 ------- Run | Yrd Mat Mat Min Mat Fac Low Low Fac Low Traps Triggered 2 | . . . . . 2 . . . . Indirectly . | . . . . . . . . . . Trap Hack Attempts . | . . . . . . . . . . Triggered . | . . . . . . . . . . Disarmed . | . . . . . . . . . . Reprogrammed . | . . . . . . . . . . Reused . | . . . . . . . . . . Traps Extracted . | . . . . . . . . . . Installed . | . . . . . . . . . . Triggered . | . . . . . . . . . . Machines | -11 -10 -9 -9 -8 -7 -7 -7 -6 -6 ---------- Run | Yrd Mat Mat Min Mat Fac Low Low Fac Low Machines Disabled 2 | . . . . . 2 . . . . Max in Single Turn 1 | . . . . . 1 . . . . Machines Repaired . | . . . . . . . . . . Machines Dismantled . | . . . . . . . . . . Machines Sabotaged . | . . . . . . . . . . Overloaded Fab Kills . | . . . . . . . . . . Hacking | -11 -10 -9 -9 -8 -7 -7 -7 -6 -6 --------- Run | Yrd Mat Mat Min Mat Fac Low Low Fac Low Machines Accessed 9 | . 1 . . . 5 1 1 1 . Terminals 3 | . 1 . . . 2 . . . . Fabricators 2 | . . . . . 1 . . 1 . Repair Stations 1 | . . . . . 1 . . . . Recycling Units . | . . . . . . . . . . Scanalyzers 1 | . . . . . 1 . . . . Garrison Access . | . . . . . . . . . . Total Hacks 22 | . 2 . . . 14 1 1 4 . Successful 9 | . 1 . . . 4 1 1 2 . Failed 13 | . 1 . . . 10 . . 2 . Catastrophic 2 | . . . . . 2 . . . . Database Lockouts . | . . . . . . . . . . Manual 2 | . . . . . 2 . . . . Terminals 5 | . 2 . . . 3 . . . . Fabricators 10 | . . . . . 6 . . 4 . Repair Stations 2 | . . . . . 2 . . . . Recycling Units . | . . . . . . . . . . Scanalyzers 3 | . . . . . 3 . . . . Garrison Access . | . . . . . . . . . . Terminal Hacks 3 | . 1 . . . . 1 1 . . Record 2 | . 1 . . . . . 1 . . Open Door 1 | . . . . . . 1 . . . Fabricator Hacks 4 | . . . . . 2 . . 2 . Load Schematic 2 | . . . . . 1 . . 1 . Build 2 | . . . . . 1 . . 1 . Repair Station Hacks . | . . . . . . . . . . Recycling Unit Hacks . | . . . . . . . . . . Scanalyzer 2 | . . . . . 2 . . . . Insert Component 1 | . . . . . 1 . . . . Analyze 1 | . . . . . 1 . . . . Garrison Access Hacks . | . . . . . . . . . . Unauthorized Hacks . | . . . . . . . . . . Terminals . | . . . . . . . . . . Fabricators . | . . . . . . . . . . Repair Stations . | . . . . . . . . . . Recycling Units . | . . . . . . . . . . Scanalyzers . | . . . . . . . . . . Garrison Access . | . . . . . . . . . . Data Cores Recovered . | . . . . . . . . . . Used . | . . . . . . . . . . Hacking Detections 5 | . 1 . . . 3 . . 1 . Full Trace Events 2 | . . . . . 1 . . 1 . Feedback Events . | . . . . . . . . . . Feedback Blocked . | . . . . . . . . . . Robot Schematics Acquired . | . . . . . . . . . . Robots Built . | . . . . . . . . . . Authchips . | . . . . . . . . . . Time . | . . . . . . . . . . Total Robot Build Rating . | . . . . . . . . . . Part Schematics Acquired 1 | . . . . . 1 . . . . Parts Built 2 | . . . . . 1 . . 1 . Authchips . | . . . . . . . . . . Time 116 | . . . . . 58 . . 58 . Total Part Build Rating 6 | . . . . . 3 . . 3 . Part Studies Acquired . | . . . . . . . . . . Parts Repaired . | . . . . . . . . . . Time . | . . . . . . . . . . Parts Recycled . | . . . . . . . . . . Recycled Matter . | . . . . . . . . . . Retrieved Matter . | . . . . . . . . . . Retrieved Components . | . . . . . . . . . . Parts Scanalyzed 1 | . . . . . 1 . . . . Part Schematics Acquired 1 | . . . . . 1 . . . . Parts Damaged . | . . . . . . . . . . Bothacking | -11 -10 -9 -9 -8 -7 -7 -7 -6 -6 ------------ Run | Yrd Mat Mat Min Mat Fac Low Low Fac Low Used RIF Installer . | . . . . . . . . . . Robots Hacked . | . . . . . . . . . . Non-combat . | . . . . . . . . . . Combat . | . . . . . . . . . . Robot Hacks Applied . | . . . . . . . . . . Relay Couplers Released . | . . . . . . . . . . Fabnet Peak Effective % . | . . . . . . . . . . Robots Rewired . | . . . . . . . . . . Allies Hacked . | . . . . . . . . . . Hacks Repelled . | . . . . . . . . . . Allies | -11 -10 -9 -9 -8 -7 -7 -7 -6 -6 -------- Run | Yrd Mat Mat Min Mat Fac Low Low Fac Low Total Allies 2 | . . . 2 . . . . . . Largest Group 2 | . . . 2 2 . . . . . Highest-Rated Group 41 | . . . 41 41 . . . . . Highest-Rated Ally 31 | . . . 31 31 . . . . . Total Orders . | . . . . . . . . . . Ally Attacks 10 | . . . . 10 . . . . . Total Damage 104 | . . . . 104 . . . . . Kills 2 | . . . . 2 . . . . . Allies Corrupted . | . . . . . . . . . . Allies Melted . | . . . . . . . . . . Intel | -11 -10 -9 -9 -8 -7 -7 -7 -6 -6 ------- Run | Yrd Mat Mat Min Mat Fac Low Low Fac Low Active Infowar (turns) 1038 | . 125 213 26 59 452 114 41 8 . Terrain 143 | . . . . 59 84 . . . . Structural 493 | . . . . . 330 114 41 8 . T.N.C. 423 | . 125 213 26 18 41 . . . . Robot Analysis Total . | . . . . . . . . . . Derelict Logs Recovered 2 | . . . 1 . . . 1 . . Drone Launches . | . . . . . . . . . . Drone Recoveries . | . . . . . . . . . . Exploration | -11 -10 -9 -9 -8 -7 -7 -7 -6 -6 ------------- Run | Yrd Mat Mat Min Mat Fac Low Low Fac Low Turns Passed 1421 | 72 189 213 26 164 489 114 41 95 18 Spaces Moved 2557 | 39 100 200 50 297 1248 388 132 94 9 Core 5 | 5 . . . . . . . . . Treads . | . . . . . . . . . . Legs 216 | 34 100 82 . . . . . . . Wheels . | . . . . . . . . . . Hover . | . . . . . . . . . . Flight 2336 | . . 118 50 297 1248 388 132 94 9 Fastest Speed 26 | 50 120 26 26 26 26 26 29 27 27 Average Speed 35 | 125 120 67 26 26 26 28 29 27 27 Slowest Speed 205 | 190 120 205 26 26 27 29 29 27 32 Overloaded Moves . | . . . . . . . . . . Propulsion Burnouts . | . . . . . . . . . . Robots Hopped 15 | . . 4 . 2 6 . . 3 . Potential Cave-ins 2 | . . . . . 2 . . . . Cave-ins Triggered . | . . . . . . . . . . Exploration Rate (%) 21 | 3 23 25 12 30 39 64 18 3 2 Regions Visited 9 Branch Regions 4 Pre-discovered Areas . | . . . . . . . . . . Known Exits Taken 2 | . . . . 1 1 . . . . Unknown Exits Taken 7 | 1 1 1 1 . . 1 1 1 . Scrap Searched 6 | . . . . . . 4 2 . . Spaces Dug 27 | . . . . 6 20 . 1 . . Terrain Destroyed 31 | . 4 . . 6 20 . 1 . . Melee 27 | . . . . 6 20 . 1 . . Projectile . | . . . . . . . . . . AOE 4 | . 4 . . . . . . . . Terrain Rammed . | . . . . . . . . . . Walls Destroyed . | . . . . . . . . . . Machines Disabled . | . . . . . . . . . . Actions | -11 -10 -9 -9 -8 -7 -7 -7 -6 -6 --------- Run | Yrd Mat Mat Min Mat Fac Low Low Fac Low Total 2869 | 51 132 247 61 354 1329 392 132 156 15 Wait 65 | . . 1 3 . 3 . . 58 . Move 2520 | 38 99 193 49 292 1235 387 131 87 9 Hop 13 | . . 2 . 2 6 . . 3 . Pick Up 34 | 3 6 6 3 10 2 1 . 3 . Fast Attach 34 | 6 1 9 . 8 9 1 . . . Attach 19 | . . 2 . 7 5 2 . 3 . Detach 5 | . . . . 3 2 . . . . Swap 13 | . 3 2 2 2 4 . . . . Drop 45 | . 4 15 3 13 9 1 . . . Fire 29 | 4 19 5 1 . . . . . . Melee 77 | . . 12 . 17 39 . 1 2 6 Ram . | . . . . . . . . . . Kick . | . . . . . . . . . . Crush . | . . . . . . . . . . Escape Stasis 15 | . . . . . 15 . . . . Rewire . | . . . . . . . . . . Trap . | . . . . . . . . . . Miscellaneous . | . . . . . . . . . . Route ------- -11/Scrapyard -10/Materials -9/Materials -9/Mines -8/Materials -7/Factory (discovered 2 exits: *Low x2) -7/Lower Caves -7/Lower Caves -6/Factory -6/Lower Caves History --------- Turn | Location | Event 12 | -11/Scrapyard | Discovered new exit (range 16) 73 | -11/Scrapyard | Entered Materials 223 | -10/Materials | Discovered new exit (range 16) 262 | -10/Materials | Entered another Materials area 262 | -9/Materials | Evolved 2 slots: Propulsion x2 322 | -9/Materials | Build established: Mutant 471 | -9/Materials | Discovered new exit (range 16) 475 | -9/Materials | Entered Mines 482 | -9/Mines | Received a Rocket Launcher from a helpful Derelict 493 | -9/Mines | Discovered new exit (range 6) 498 | -9/Mines | Learned location of 1 exit from Proximity Caves 501 | -9/Mines | Entered Materials 501 | -8/Materials | Accompanied by 2 allies 501 | -8/Materials | Evolved 2 slots: Utility x2 506 | -8/Materials | Led the pair of lost Derelicts to an unsafe place 661 | -8/Materials | Discovered new exit (range 13) 665 | -8/Materials | Identified exit to Factory 665 | -8/Materials | Entered Factory 665 | -7/Factory | Evolved 2 slots: Power x1, Utility x1 691 | -7/Factory | Build established: Sprinter 845 | -7/Factory | Discovered new exit (range 6) 852 | -7/Factory | Identified exit to Lower Caves 1040 | -7/Factory | Discovered exit to Lower Caves (range 8) 1111 | -7/Factory | Fabricated Imp. VTOL Module? 1154 | -7/Factory | Entered Lower Caves 1160 | -7/Lower Caves | Encountered a Warlord checkpoint 1178 | -7/Lower Caves | Build established: Hacker-Sprinter 1189 | -7/Lower Caves | Lost 3 parts (2n1u) 1207 | -7/Lower Caves | Spotted B-75 Beast 1239 | -7/Lower Caves | Lost 3 parts (2p1n) 1246 | -7/Lower Caves | Attracted the attention of an 0b10 checkpoint 1268 | -7/Lower Caves | Discovered new exit (range 3) 1268 | -7/Lower Caves | Entered another Lower Caves area 1295 | -7/Lower Caves | Entered a destroyed Warlord outpost 1296 | -7/Lower Caves | Learned Factory stockpile data 1306 | -7/Lower Caves | Discovered new exit (range 11) 1309 | -7/Lower Caves | Entered Factory 1309 | -6/Factory | Evolved 2 slots: Utility x2 1378 | -6/Factory | Fabricated Imp. VTOL Module (x1) 1387 | -6/Factory | Discovered new exit (range 11) 1404 | -6/Factory | Entered Lower Caves 1422 | -6/Lower Caves | Self-destructed Last Messages --------------- 01393_ K-01 Serf destroyed. 01393_ K-01 Serf pushes G-50 Soldier. 01393_ K-01 Serf collects debris. 01394_ K-01 Serf pushes G-50 Soldier. 01395_ R-10 Processor collects Wheel. 01395_ Sneak attack on R-10 Processor. 01395_ Destroyed Com. Wheel. 01395_ K-01 Serf pushes G-50 Soldier. 01396_ K-01 Serf cleans the Garrison Access. 01396_ K-01 Serf pushes G-50 Soldier. 01401_ Acquired Imp. Sensor Array. LOCATION=UNKNOWN GOAL=ESCAPE 01405_ C-30 ARC bursts open, deploying its payload. 01405_ S-27 Virus unfolds itself. 01406_ Imp. VTOL Module destroyed. 01412_ Flight Unit destroyed. 01417_ Imp. VTOL Module destroyed. 01420_ Structural Scanner destroyed. Map ----- +----------------------------------------------------+ | ?????????????????????????????????????????????????? | | ?????????????????????????????????????????????????? | | ?????????????????????????????????????????????????? | | ?????????????????????????????????????????????????? | | ?????????????????????????????????????????????????? | | ?????????????????????????????????????????????????? | | ?????????????????????????????????????????????????? | | ?????????????????????????????????????????????????? | | ?????????????????????????????????????????????????? | | ?????????????????????????????????????????????????? | | ?????????????????????????????????????????????????? | | ?????????????????????????????????????????????????? | | ?????????????????????????????????????????????????? | | ?????????????????????????#???????????????????????? | | ????????????????????????? ##?????????????????????? | | ????????????????????????? #?????????????????????? | | ????????????????????????? ?????????????????????? | | ????????????????????????? ?????????????????????? | | ????????????????????????? #?????????????????????? | | ?????????????????????????# ##????????????????????? | | ???????????????????????### ?????????????????????? | | ????????????????????#### ?????????????????????? | | ???????????????????## #?????????????????????? | | ???????????????????? s ########??????????????? | | ??????????????????????# s s ## #??????????????? | | ???????????????????????#%@ s #??????????????? | | ???????????????????????## #??????????????? | | ???????????????????????## #??????????????? | | ???????????????????????# ##??????????????? | | ???????????????????????###### ####???????????????? | | ????????????????????????????###??????????????????? | | ?????????????????????????????????????????????????? | | ?????????????????????????????????????????????????? | | ?????????????????????????????????????????????????? | | ?????????????????????????????????????????????????? | | ?????????????????????????????????????????????????? | | ?????????????????????????????????????????????????? | | ?????????????????????????????????????????????????? | | ?????????????????????????????????????????????????? | | ?????????????????????????????????????????????????? | | ?????????????????????????????????????????????????? | | ?????????????????????????????????????????????????? | | ?????????????????????????????????????????????????? | | ?????????????????????????????????????????????????? | | ?????????????????????????????????????????????????? | | ?????????????????????????????????????????????????? | | ?????????????????????????????????????????????????? | | ?????????????????????????????????????????????????? | | ?????????????????????????????????????????????????? | | ?????????????????????????????????????????????????? | +----------------------------------------------------+ Best States ------------- Heat Dissipation 37 Energy Generation 24 Energy Capacity 220 Matter Stores 300 Matter Capacity 300 Sight Range 16 Terrain Scan Range 16 Terrain Scan Density 110 Armor Coverage 225 Propulsion Shielding 33 Evasion (%) 64 Melee Accuracy 6 Offensive Hacking 21 Defensive Hacking 30 Authchip Count 1 Item Schematics ----------------- Imp. VTOL Module | -7/Factory | Scanalyzed Robot Schematics ------------------ None Fabricated ------------ Imp. VTOL Module | x1 | -7/Factory Imp. VTOL Module | x1 | -6/Factory Repaired ---------- Nothing Studied --------- None Alien Tech Used ----------------- None Achievements -------------- Heavy Suspicion Challenges ------------ None Game ------ Seed PortableDisruptionPit Manual? 0 Play Time 00:54:17 Cumulative 49.2 hours Start 2026.02.10 @ 14:45:24 End 2026.02.10 @ 16:52:18 Sessions 5 Manual Loads 0 Difficulty Rogue Special Mode None Game No. 95 Rogue 95 Adventurer 0 Explorer 0 Win Type - Total 1 Types 1/0/0/0/0/0/0/0/0/0 Lore% 16 Gallery% 29 Achievement% 17 Wizard Run 0 Options --------- Layout 1 ASCII 0 Keyboard 0 Movement Mouse Keybinds 0 Fullscreen 2 Font 20/X11 Map View 50x35 Zoom Use 0% Tactical HUD 1 Map Filters NONE Filters NONE Steam 1 RUN: 3c68235c-6028-4c42-a679-7733cd644644